Cogmind - Beta 16 @@@ ROGUE MODE // 2026.01.05 @ 10:50:33 Player: Oldman Pu Result: Destroyed self via exploding Fusion Modulator Performance ------------- Evolutions (0) 0 Regions Visited (1) 200 Robots Destroyed (22) 110 Value Destroyed (561) 561 Prototype IDs (0) 0 Alien Tech Used (0) 0 Bonus (0) 0 TOTAL SCORE: 871 Bonus ------- None Cogmind --------- Core Integrity 0/250 Matter 300/300 Energy 250/250 System Corruption 0% Temperature Cool (28) Movement Rolling (200) Ox8 Location -10/Materials Parts ------- > --- POWER (1) -------- Ion Engine > --- PROPULSION (2) --- Wheel > --- UTILITY (2) ------ Improved Heat Sink Huge Storage Unit > --- WEAPON (2) ------- Particle Gun Light Assault Rifle > --- INVENTORY (25) --- Ion Engine Light Ion Engine Compact Wheel Compact Wheel Compact Wheel Compact Wheel Heat Sink Heat Sink Small Storage Unit Particle Gun Particle Gun Particle Gun Light Assault Rifle Peak State ------------ > --- POWER ------------ Ion Engine > --- PROPULSION ------- Wheel Compact Wheel > --- UTILITY ---------- Improved Heat Sink Huge Storage Unit > --- WEAPON ----------- Particle Gun Light Assault Rifle > --- INVENTORY -------- Heat Sink Heat Sink Small Storage Unit Particle Gun Particle Gun Particle Gun Light Assault Rifle [Rating: 11] Favorites ----------- Power Ion Engine Engine Ion Engine Propulsion Compact Wheel Wheel Compact Wheel Utility Huge Storage Unit Device Heat Sink Storage Huge Storage Unit Weapon Light Assault Rifle Energy Gun Particle Gun Ballistic Gun Light Assault Rifle Build | -11 -10 ------- Run | Yrd Mat Slots Evolved . | . . Power . | . . Propulsion . | . . Utility . | . . Weapon . | . . Parts Attached 18 | 6 12 Power 3 | 1 2 Engine 3 | 1 2 Core . | . . Reactor . | . . Propulsion 5 | 2 3 Treads . | . . Leg . | . . Wheel 5 | 2 3 Hover . | . . Flight . | . . Utility 5 | 1 4 Device 3 | . 3 Storage 2 | 1 1 Processor . | . . Hackware . | . . Protection . | . . Artifact . | . . Weapon 5 | 2 3 Energy Gun 2 | . 2 Energy Cannon . | . . Ballistic Gun 3 | 2 1 Ballistic Cannon . | . . Launcher . | . . Special Weapon . | . . Impact Weapon . | . . Slashing Weapon . | . . Piercing Weapon . | . . Special Melee Weapon . | . . Unidentified Prototypes . | . . Parts Lost 7 | . 7 Power 1 | . 1 Propulsion 3 | . 3 Utility 1 | . 1 Weapon 2 | . 2 Highest Loss Streak 4 | . 4 To Critical Strikes . | . . Average Backups 6 | . 7 Power 1 | . 1 Propulsion . | . 1 Utility 1 | . 1 Weapon 3 | . 3 Tool/Special . | . . Unused Backups 9 | . 9 Power 1 | . 1 Propulsion 4 | . 4 Utility 1 | . 1 Weapon 3 | . 3 Tool/Special . | . . Average Slot Usage (%) 94 | . 94 Engine 13 | . 13 Wheel 25 | . 25 Device 10 | . 10 Storage 14 | . 14 Energy Gun 10 | . 10 Ballistic Gun 17 | . 17 Peak Build Rating 11 | 6 11 Average Rating 8 | 4 8 On Entrance 3 | . 6 Avg Prop Armor Cover (%) 18 | 18 . Naked Turns . | . . Heaviest Build 92 | 12 92 Greatest Support 32 | 26 32 Greatest Overweight (x) 5 | 3 5 Average Overweight (x) 1 | . 1 Largest Inventory Capacity 25 | 8 25 Average Capacity 21 | 7 22 Most Carried 13 | 1 13 Average Carried 7 | . 7 Final Capacity 25 | 8 25 Final Carried 13 | 1 13 Class Distribution -------------------- 79% | Mutant 20% | Scavenger-Mutant Dominant Class ---------------- Mutant | -10/Materials Resources | -11 -10 ----------- Run | Yrd Mat Matter Collected 446 | 168 278 Remotely . | . . Salvage Created 693 | . 693 Parts 34 | . 34 Haulers Intercepted . | . . Recyclers Shooed 1 | . 1 Parts Field Recycled . | . . Retrieved Matter . | . . Parts Self-Destructed . | . . Prevented . | . . Parts Restored . | . . Kills | -11 -10 ------- Run | Yrd Mat Combat Hostiles Destroyed 16 | . 16 Guns 16 | . 16 Classes Destroyed 5 | . 5 Worker 2 | . 2 Recycler 1 | . 1 Watcher 3 | . 3 Swarmer 3 | . 3 Grunt 13 | . 13 Best Kill Streak 7 | . 7 Combat Bots Only 4 | . 4 Max Kills in Single Turn 1 | . 1 Gunslinging . | . . Exploded . | . . Melee . | . . Uniques/NPCs Destroyed . | . . Combat | -11 -10 -------- Run | Yrd Mat Hostile Shots Fired 108 | . 108 Missed 26 | . 26 Hits 82 | . 82 Projectile 82 | . 82 Damage Taken 935 | . 935 Core 293 | . 293 Absorbed by Shields . | . . Core Remaining (%) 100 | 100 . Volleys Fired 78 | . 78 Largest 2 | . 2 Hottest 85 | . 85 Shots Fired 152 | . 152 Gun 152 | . 152 Cannon . | . . Launcher . | . . Special . | . . Kinetic 86 | . 86 Thermal 66 | . 66 Explosive . | . . Electromagnetic . | . . Robot Hit Streak 12 | . 12 Robot Miss Streak 4 | . 4 Penetration Max . | . . Secondary Targets 1 | . 1 Max Gunslinging Chain 1 | . 1 Shots Hit Robots 99 | . 99 Core Hits 39 | . 39 Critical Kills 1 | . 1 Critical Parts Destroyed . | . . Critical Strikes 3 | . 3 Burn 2 | . 2 Destroy 1 | . 1 Melee Attacks . | . . Impact . | . . Slashing . | . . Piercing . | . . Sneak Attacks . | . . Combat Hostiles . | . . Follow-up Attacks . | . . Damage Inflicted 1290 | . 1290 Guns 1176 | . 1176 Cannons . | . . Explosions 114 | . 114 Melee . | . . Ramming . | . . Kinetic 434 | . 434 Thermal 856 | . 856 Explosive . | . . Electromagnetic . | . . Impact . | . . Slashing . | . . Piercing . | . . Highest Corruption . | . . Average Corruption . | . . Corruption Purged . | . . Corruption Blocked . | . . Overload Shots . | . . Overflow Damage 154 | . 154 Projectiles . | . . Explosions 154 | . 154 Melee . | . . Knockbacks . | . . Impact . | . . Kinetic . | . . Secondary . | . . Self-Inflicted Damage 88 | . 88 Shots 1 | . 1 Rammed . | . . Targets Rammed . | . . Kicked . | . . Crushed . | . . Highest Temperature 92 | . 92 Average Temperature 22 | . 22 Received Heat Transfer 378 | . 378 Siege Activations . | . . Martial Activations . | . . Shielding Activations . | . . Robots Disrupted . | . . Combat Hostiles . | . . Robots Corrupted . | . . Combat Hostiles . | . . Parts Fried . | . . Impact Corruptions . | . . Robots Melted . | . . Combat Hostiles . | . . Parts Melted 2 | . 2 Heat Transferred 1974 | . 1974 Parts Sabotaged . | . . Parts Stolen . | . . Parts Stripped . | . . Power Chain Reactions . | . . Alert | -11 -10 ------- Run | Yrd Mat Maximum Alert Level . | . . Low Security (%) 100 | 100 100 Level 1 . | . . Level 2 . | . . Level 3 . | . . Level 4 . | . . Level 5 . | . . High Security . | . . Max Security . | . . Peak Influence 193 | . 193 Initial . | . . Average 71 | . 75 Influence Increases 522 | . 522 Destroy 0b10 Robot/C 320 | . 320 Destroy 0b10 Robot/NC 30 | . 30 Destroy Leader 66 | . 66 Disable Machine 30 | . 30 Destroy Structure 1 | . 1 Lose Combat Pursuer 75 | . 75 Influence Decreases 318 | . 318 Time Decay 248 | . 248 Lost Part 70 | . 70 Squads Dispatched 4 | . 4 Investigation 3 | . 3 Extermination . | . . Reinforcement 1 | . 1 Assault . | . . Garrison . | . . Intercept . | . . Searches Triggered . | . . Construction Impeded . | . . Haulers Reinforced . | . . Active Scanning Responses . | . . Cargo Convoy Interrupts . | . . Stealth | -11 -10 --------- Run | Yrd Mat Distress Signals 3 | . 3 Communications Jammed . | . . Distress Signals . | . . Times Spotted 26 | . 26 Peak Tracking Total 5 | . 5 Tactical Retreats 4 | . 4 Traps | -11 -10 ------- Run | Yrd Mat Traps Triggered 3 | . 3 Indirectly . | . . Trap Hack Attempts . | . . Triggered . | . . Disarmed . | . . Reprogrammed . | . . Reused . | . . Traps Extracted . | . . Installed . | . . Triggered . | . . Machines | -11 -10 ---------- Run | Yrd Mat Machines Disabled 2 | . 2 Max in Single Turn 2 | . 2 Machines Repaired . | . . Machines Dismantled . | . . Machines Sabotaged . | . . Overloaded Fab Kills . | . . Hacking | -11 -10 --------- Run | Yrd Mat Machines Accessed . | . . Terminals . | . . Fabricators . | . . Repair Stations . | . . Recycling Units . | . . Scanalyzers . | . . Garrison Access . | . . Total Hacks . | . . Successful . | . . Failed . | . . Catastrophic . | . . Database Lockouts . | . . Manual . | . . Terminals . | . . Fabricators . | . . Repair Stations . | . . Recycling Units . | . . Scanalyzers . | . . Garrison Access . | . . Terminal Hacks . | . . Fabricator Hacks . | . . Repair Station Hacks . | . . Recycling Unit Hacks . | . . Scanalyzer . | . . Garrison Access Hacks . | . . Unauthorized Hacks . | . . Terminals . | . . Fabricators . | . . Repair Stations . | . . Recycling Units . | . . Scanalyzers . | . . Garrison Access . | . . Data Cores Recovered . | . . Used . | . . Hacking Detections . | . . Full Trace Events . | . . Feedback Events . | . . Feedback Blocked . | . . Robot Schematics Acquired . | . . Robots Built . | . . Authchips . | . . Time . | . . Total Robot Build Rating . | . . Part Schematics Acquired . | . . Parts Built . | . . Authchips . | . . Time . | . . Total Part Build Rating . | . . Part Studies Acquired . | . . Parts Repaired . | . . Time . | . . Parts Recycled . | . . Recycled Matter . | . . Retrieved Matter . | . . Retrieved Components . | . . Parts Scanalyzed . | . . Part Schematics Acquired . | . . Parts Damaged . | . . Bothacking | -11 -10 ------------ Run | Yrd Mat Used RIF Installer . | . . Robots Hacked . | . . Non-combat . | . . Combat . | . . Robot Hacks Applied . | . . Relay Couplers Released . | . . Fabnet Peak Effective % . | . . Robots Rewired . | . . Allies Hacked . | . . Hacks Repelled . | . . Allies | -11 -10 -------- Run | Yrd Mat Total Allies . | . . Largest Group . | . . Highest-Rated Group . | . . Highest-Rated Ally . | . . Total Orders . | . . Ally Attacks . | . . Total Damage . | . . Kills . | . . Allies Corrupted . | . . Allies Melted . | . . Intel | -11 -10 ------- Run | Yrd Mat Active Infowar (turns) . | . . Robot Analysis Total . | . . Derelict Logs Recovered . | . . Drone Launches . | . . Drone Recoveries . | . . Exploration | -11 -10 ------------- Run | Yrd Mat Turns Passed 744 | 42 702 Spaces Moved 393 | 30 363 Core 11 | 11 . Treads . | . . Legs . | . . Wheels 382 | 19 363 Hover . | . . Flight . | . . Fastest Speed 50 | 50 90 Average Speed 121 | 108 122 Slowest Speed 200 | 200 175 Overloaded Moves . | . . Propulsion Burnouts . | . . Robots Hopped . | . . Potential Cave-ins . | . . Cave-ins Triggered . | . . Exploration Rate (%) 34 | 3 66 Regions Visited 1 Branch Regions . Pre-discovered Areas . | . . Known Exits Taken . | . . Unknown Exits Taken 1 | 1 . Scrap Searched . | . . Spaces Dug . | . . Terrain Destroyed 1 | . 1 Melee . | . . Projectile . | . . AOE 1 | . 1 Terrain Rammed . | . . Walls Destroyed . | . . Machines Disabled . | . . Actions | -11 -10 --------- Run | Yrd Mat Total 520 | 36 484 Wait 16 | . 16 Move 392 | 29 363 Hop . | . . Pick Up 15 | 1 14 Fast Attach 9 | 6 3 Attach 4 | . 4 Detach . | . . Swap 5 | . 5 Drop 1 | . 1 Fire 78 | . 78 Melee . | . . Ram . | . . Kick . | . . Crush . | . . Escape Stasis . | . . Rewire . | . . Trap . | . . Miscellaneous . | . . Route ------- -11/Scrapyard -10/Materials (discovered 5 exits: [*Mat x3] / [*Min x2]) History --------- Turn | Location | Event 19 | -11/Scrapyard | Discovered new exit (range 15) 43 | -11/Scrapyard | Entered Materials 99 | -10/Materials | Discovered new exit (range 14) 138 | -10/Materials | Discovered new exit (range 14) 301 | -10/Materials | Build established: Mutant 421 | -10/Materials | Discovered new exit (range 10) 421 | -10/Materials | Discovered new exit (range 6) 499 | -10/Materials | Core integrity fell below 50% 526 | -10/Materials | Lost 4 parts (1p1n2w) 683 | -10/Materials | Discovered new exit (range 13) 716 | -10/Materials | Core integrity fell below 20% 745 | -10/Materials | Destroyed self via exploding Fusion Modulator Last Messages --------------- 00649_ G-34 Mercenary destroyed. 00656_ Acquired 12 matter. 00657_ Triggered Alarm Trap. 00657_ An alarm sounds. 00657_ ALERT: Alarm triggered, dispatching investigation squad. 00683_ EXIT=FOUND 00699_ G-34 Mercenary destroyed. 00722_ G-34 Mercenary suffers critical hit (Burn). 00725_ Sml. Laser melted. 00725_ G-34 Mercenary destroyed. 00729_ Acquired 14 matter. 00732_ K-01 Serf cleans the Fusion Modulator. 00745_ Fusion Modulator explodes. 00745_ Destroyed Lgt. Ion Engine. [Achievement: Overwhelming] 00745_ Destroyed Wheel. 00745_ K-01 Serf destroyed. 00745_ Terminal disabled. 00745_ Com. Wheel destroyed. 00745_ Destroyed Com. Wheel. Map ----- +----------------------------------------------------+ | ?????????????????????????????????????????????????? | | ?????????????????????????????????????????????????? | | ?????????????????????????????????????????????????? | | ?????????????????????????????????????????????????? | | ?????????????????????????????????????????????????? | | ?????????????????????????????????????????????????? | | ?????????????????????????????????????????????????? | | ?????????????????????????????????????????????????? | | ?????????????????????????????????????????????????? | | ??????????????????????####???????????????????????? | | ?????????????????????# #???????????????????????? | | ?????????????????????# < #???????????????????????? | | ?????????????????????# #???????????????????????? | | ?????????????????????# +???????????????????????? | | ???????????########### #???????????????????????? | | ???????????# + #???????????????????????? | | ???????????# # #???????????????????????? | | ???????????# "" !|# #???????????????????????? | | ???????????# "" | # #???????????????????????? | | ???????????# "T =#% #???????????????????????? | | ???????????# "" ==+%[ #?????????????????# ????? | | ???????????# "" !#= #?????????????????# ????? | | ???????????# # #?????????????????# ????? | | ???????????########### ##????????????????# ###?? | | ????????????????????# t###+##;#???????### #?? | | ???????"????????????# @ ^ ? #?? | | ?????? ????????????# au ? ?? | | #####+############# "T ?? ### | | % = % %! #######???# # | | ############ #?????????# # | | #??????????# #?????????# # | | ###### #??????????# #?????????# # | | ###### #??????????# #?????????# # | | # ##########?# !! +?????????# # | | ! # # #?# !! #?????????# + | | # # ! " #?# ##### ##?????????# # | | # # T #?# #???? #??????????# # | | """ # # " #?# #?????#??????????# ### | | """ + + #?# #????????????????# | | """ # # """ #?# #????????????????# | | # # """ /? #???#+#####??????# | | ######* # ! """ #?### #? #????######+## | | ?#[% [ # ?????## # #????# | | ?# <%*! ##########???????# #????# """ | | ?#[==% #????????????????# """ #????# """ | | ?#%#######??????????????#?# """ #????# | """ | | ?#=#????????????????????# # """ " " #????# | | ?# #???#######??????????# ? "Y" ?????######### | | ##%##### #??????????# ??? ""????????????# | | = ############ #####+############### | +----------------------------------------------------+ Best States ------------- Heat Dissipation 39 Energy Generation 10 Energy Capacity 250 Matter Stores 300 Matter Capacity 300 Sight Range 16 Terrain Scan Density 10 Evasion (%) 42 Item Schematics ----------------- None Robot Schematics ------------------ None Fabricated ------------ Nothing Repaired ---------- Nothing Studied --------- None Alien Tech Used ----------------- None Achievements -------------- Overwhelming Challenges ------------ None Game ------ Seed AngularMagneticLance Manual? 0 Play Time 00:08:05 Cumulative 308.4 hours Start 2026.01.05 @ 10:43:43 End 2026.01.05 @ 10:50:33 Sessions 1 Manual Loads 0 Difficulty Rogue Special Mode None Game No. 267 Rogue 255 Adventurer 12 Explorer 0 Win Type - Total 1 Types 1/0/0/0/0/0/0/0/0/0 Lore% 32 Gallery% 44 Achievement% 23 Wizard Run 0 Options --------- Layout 1 ASCII 0 Keyboard 0 Movement Mouse Keybinds 0 Fullscreen 1 Font 32/SmallcapsGlow Map View 77x35 Zoom Use 0% Tactical HUD 1 Map Filters NONE Filters NONE Steam 1 RUN: 50894c89-9789-4a07-bbcf-f7eb30f5ae42